Cogmind - Beta 13 @@@ ROGUE MODE // 2024.05.02 @ 00:45:04 Player: WarMechanic Result: Destroyed by S-10 Pest with Light Assault Rifle Performance ------------- Evolutions (0) 0 Regions Visited (1) 200 Robots Destroyed (30) 150 Value Destroyed (357) 357 Prototype IDs (0) 0 Alien Tech Used (0) 0 Bonus (0) 0 TOTAL SCORE: 707 Bonus ------- None Cogmind --------- Core Integrity 0/250 Matter 273/300 Energy 150/160 System Corruption 0% Temperature Cool (56) Movement Rolling (215) Ox9 Location -10/Materials Parts ------- > --- POWER (1) -------- Light Nuclear Core > --- PROPULSION (2) --- Light Treads Wheel > --- UTILITY (2) ------ Huge Storage Unit Seismic Detector > --- WEAPON (2) ------- Particle Gun Hammer > --- INVENTORY (25) --- Wheel Wheel Wheel Sensor Array Sensor Array Sensor Array ECM Suite Hacking Suite Rocket Launcher Rocket Launcher Datajack Hammer Hammer Peak State ------------ > --- POWER ------------ Light Nuclear Core > --- PROPULSION ------- Light Treads Wheel > --- UTILITY ---------- Huge Storage Unit Seismic Detector > --- WEAPON ----------- Particle Gun Hammer > --- INVENTORY -------- Sensor Array Sensor Array Sensor Array ECM Suite Hacking Suite Rocket Launcher Rocket Launcher Datajack Hammer Hammer [Rating: 11] Favorites ----------- Power Light Ion Engine Engine Light Ion Engine Power Core Light Nuclear Core Propulsion Light Treads Treads Light Treads Wheel Wheel Utility Seismic Detector Device Seismic Detector Storage Huge Storage Unit Weapon EM Shotgun Energy Gun EM Shotgun Special Weapon Mining Laser Impact Weapon Hammer Build | -11 -10 ------- Run | Yrd Mat Slots Evolved . | . . Power . | . . Propulsion . | . . Utility . | . . Weapon . | . . Parts Attached 24 | 11 13 Power 3 | 1 2 Engine 2 | 1 1 Core 1 | . 1 Reactor . | . . Propulsion 4 | 2 2 Treads 3 | 2 1 Leg . | . . Wheel 1 | . 1 Hover . | . . Flight . | . . Utility 5 | 2 3 Device 3 | 1 2 Storage 2 | 1 1 Processor . | . . Hackware . | . . Protection . | . . Artifact . | . . Weapon 12 | 6 6 Energy Gun 9 | 4 5 Energy Cannon . | . . Ballistic Gun . | . . Ballistic Cannon . | . . Launcher . | . . Special Weapon 2 | 2 . Impact Weapon 1 | . 1 Slashing Weapon . | . . Piercing Weapon . | . . Special Melee Weapon . | . . Unidentified Prototypes . | . . Parts Lost 9 | . 9 Power 2 | . 2 Propulsion 2 | . 2 Utility 1 | . 1 Weapon 4 | . 4 Highest Loss Streak 8 | . 8 To Critical Strikes . | . . Average Slot Usage (%) 73 | . 73 Engine 7 | . 7 Core 2 | . 2 Treads 15 | . 15 Wheel 1 | . 1 Device 8 | . 8 Storage 14 | . 14 Energy Gun 17 | . 17 Impact Weapon 6 | . 6 Naked Turns . | . . Heaviest Build 91 | 11 91 Greatest Support 40 | 40 40 Greatest Overweight (x) 29 | . 29 Average Overweight (x) 3 | . 6 Largest Inventory Capacity 25 | 8 25 Average Capacity 18 | 7 23 Most Carried 13 | 8 13 Average Carried 9 | 6 10 Final Capacity 25 | 8 25 Final Carried 13 | 7 13 Class Distribution -------------------- 91% | Mutant 8% | Scavenger-Mutant Dominant Class ---------------- Mutant | -10/Materials Resources | -11 -10 ----------- Run | Yrd Mat Matter Collected 393 | 310 83 Remotely . | . . Salvage Created 542 | 156 386 Parts 47 | 16 31 Haulers Intercepted 1 | . 1 Recyclers Shooed . | . . Parts Field Recycled . | . . Retrieved Matter . | . . Parts Self-Destructed . | . . Prevented . | . . Kills | -11 -10 ------- Run | Yrd Mat Combat Hostiles Destroyed 8 | . 8 Melee 1 | . 1 Guns 6 | . 6 Classes Destroyed 9 | 3 6 Worker 7 | 3 4 Builder 2 | . 2 Tunneler 7 | 7 . Hauler 1 | . 1 Recycler 1 | 1 . Operator 1 | . 1 Watcher 3 | . 3 Swarmer 4 | . 4 Grunt 4 | . 4 Best Kill Streak 5 | 3 5 Combat Bots Only 2 | . 2 Max Kills in Single Turn 5 | 1 5 Gunslinging 1 | . 1 Exploded . | . . Melee 1 | . 1 Uniques/NPCs Destroyed . | . . Combat | -11 -10 -------- Run | Yrd Mat Hostile Shots Fired 104 | . 104 Missed 26 | . 26 Damage Taken 1008 | . 1008 Core 252 | . 252 Absorbed by Shields . | . . Core Remaining (%) 100 | 100 . Volleys Fired 48 | 26 22 Largest 2 | 2 2 Hottest 200 | 200 90 Shots Fired 92 | 52 40 Gun 66 | 26 40 Cannon . | . . Launcher . | . . Special 26 | 26 . Kinetic . | . . Thermal 56 | 52 4 Explosive . | . . Electromagnetic 36 | . 36 Robot Hit Streak 7 | 6 7 Robot Miss Streak 6 | 4 6 Penetration Max . | . . Secondary Targets 2 | . 2 Max Gunslinging Chain 1 | . 1 Shots Hit Robots 60 | 31 29 Core Hits 31 | 12 19 Critical Kills 1 | . 1 Critical Parts Destroyed . | . . Critical Strikes 2 | . 2 Burn 1 | . 1 Smash 1 | . 1 Melee Attacks 5 | . 5 Impact 5 | . 5 Slashing . | . . Piercing . | . . Sneak Attacks . | . . Combat Hostiles . | . . Follow-up Attacks . | . . Damage Inflicted 1607 | 511 1096 Guns 594 | 199 395 Cannons . | . . Explosions 633 | . 633 Melee 68 | . 68 Ramming . | . . Kinetic . | . . Thermal 1159 | 511 648 Explosive . | . . Electromagnetic 380 | . 380 Impact 68 | . 68 Slashing . | . . Piercing . | . . Highest Corruption . | . . Average Corruption . | . . Corruption Purged . | . . Corruption Blocked . | . . Overload Shots . | . . Overflow Damage 273 | 4 269 Projectiles 4 | 4 . Explosions 265 | . 265 Melee 4 | . 4 Knockbacks 1 | . 1 Impact 1 | . 1 Kinetic . | . . Secondary . | . . Self-Inflicted Damage 175 | . 175 Shots 4 | . 4 Rammed . | . . Targets Rammed . | . . Kicked . | . . Crushed . | . . Highest Temperature 130 | 128 130 Average Temperature 38 | 38 39 Received Heat Transfer 327 | . 327 Siege Activations . | . . Robots Corrupted 1 | . 1 Combat Hostiles 1 | . 1 Parts Fried 2 | . 2 Impact Corruptions 1 | . 1 Robots Melted . | . . Combat Hostiles . | . . Parts Melted 2 | . 2 Heat Transferred 1811 | 1100 711 Parts Sabotaged . | . . Parts Stolen . | . . Parts Stripped . | . . Power Chain Reactions 4 | . 4 Alert | -11 -10 ------- Run | Yrd Mat Peak Influence 203 | 55 203 Initial . | . . Average 37 | 29 41 Maximum Alert Level 1 | . 1 Low Security (%) 97 | 100 96 Level 1 2 | . 3 Level 2 . | . . Level 3 . | . . Level 4 . | . . Level 5 . | . . High Security . | . . Max Security . | . . Squads Dispatched 3 | . 3 Investigation . | . . Extermination . | . . Reinforcement 3 | . 3 Assault . | . . Garrison . | . . Intercept . | . . Searches Triggered . | . . Construction Impeded . | . . Haulers Reinforced . | . . Active Scanning Responses . | . . Cargo Convoy Interrupts . | . . Stealth | -11 -10 --------- Run | Yrd Mat Distress Signals 2 | . 2 Communications Jammed . | . . Distress Signals . | . . Times Spotted 16 | . 16 Peak Tracking Total 4 | . 4 Tactical Retreats . | . . Traps | -11 -10 ------- Run | Yrd Mat Traps Triggered . | . . Indirectly . | . . Trap Hack Attempts . | . . Triggered . | . . Disarmed . | . . Reprogrammed . | . . Reused . | . . Traps Extracted . | . . Installed . | . . Triggered . | . . Machines | -11 -10 ---------- Run | Yrd Mat Machines Disabled 3 | . 3 Max in Single Turn 1 | . 1 Machines Repaired . | . . Machines Dismantled . | . . Machines Sabotaged . | . . Overloaded Fab Kills . | . . Hacking | -11 -10 --------- Run | Yrd Mat Machines Accessed 1 | . 1 Terminals . | . . Fabricators . | . . Repair Stations . | . . Recycling Units 1 | . 1 Scanalyzers . | . . Garrison Access . | . . Total Hacks 2 | . 2 Successful 2 | . 2 Failed . | . . Catastrophic . | . . Database Lockouts . | . . Manual . | . . Terminals . | . . Fabricators . | . . Repair Stations . | . . Recycling Units 2 | . 2 Scanalyzers . | . . Garrison Access . | . . Terminal Hacks . | . . Fabricator Hacks . | . . Repair Station Hacks . | . . Recycling Unit Hacks 2 | . 2 Report Inventory 1 | . 1 Retrieve Components 1 | . 1 Scanalyzer . | . . Garrison Access Hacks . | . . Unauthorized Hacks . | . . Terminals . | . . Fabricators . | . . Repair Stations . | . . Recycling Units . | . . Scanalyzers . | . . Garrison Access . | . . Data Cores Recovered . | . . Used . | . . Hacking Detections . | . . Full Trace Events . | . . Feedback Events . | . . Feedback Blocked . | . . Robot Schematics Acquired . | . . Robots Built . | . . Authchips . | . . Time . | . . Total Robot Build Rating . | . . Part Schematics Acquired . | . . Parts Built . | . . Authchips . | . . Time . | . . Total Part Build Rating . | . . Parts Repaired . | . . Time . | . . Parts Recycled . | . . Recycled Matter . | . . Retrieved Matter . | . . Retrieved Components 10 | . 10 Parts Scanalyzed . | . . Part Schematics Acquired . | . . Parts Damaged . | . . Bothacking | -11 -10 ------------ Run | Yrd Mat Used RIF Installer . | . . Robots Hacked . | . . Non-combat . | . . Combat . | . . Robot Hacks Applied . | . . Relay Couplers Released . | . . Fabnet Peak Effective % . | . . Robots Rewired . | . . Allies Hacked . | . . Hacks Repelled . | . . Allies | -11 -10 -------- Run | Yrd Mat Total Allies . | . . Largest Group . | . . Highest-Rated Group . | . . Highest-Rated Ally . | . . Total Orders . | . . Ally Attacks . | . . Total Damage . | . . Kills . | . . Allies Corrupted . | . . Allies Melted . | . . Intel | -11 -10 ------- Run | Yrd Mat Robot Analysis Total . | . . Derelict Logs Recovered . | . . Drone Launches . | . . Drone Recoveries . | . . Exploration | -11 -10 ------------- Run | Yrd Mat Turns Passed 1447 | 412 1035 Spaces Moved 382 | 161 221 Core 31 | 5 26 Treads 307 | 156 151 Legs . | . . Wheels 44 | . 44 Hover . | . . Flight . | . . Fastest Speed 50 | 50 160 Average Speed 296 | 156 398 Slowest Speed 1500 | 160 1500 Overloaded Moves . | . . Propulsion Burnouts . | . . Robots Hopped . | . . Cave-ins Triggered . | . . Exploration Rate (%) 23 | 8 39 Regions Visited 1 Branch Regions . Pre-discovered Areas . | . . Known Exits Taken . | . . Unknown Exits Taken 1 | 1 . Scrap Searched . | . . Spaces Dug . | . . Terrain Destroyed 47 | 4 43 Melee . | . . Projectile 4 | 4 . AOE 43 | . 43 Terrain Rammed . | . . Walls Destroyed . | . . Machines Disabled . | . . Actions | -11 -10 --------- Run | Yrd Mat Total 554 | 220 334 Wait 36 | . 36 Move 381 | 160 221 Hop . | . . Pick Up 42 | 17 25 Fast Attach . | . . Attach 23 | 11 12 Detach 5 | 3 2 Swap 1 | . 1 Drop 13 | 3 10 Fire 48 | 26 22 Melee 5 | . 5 Ram . | . . Kick . | . . Crush . | . . Escape Stasis . | . . Rewire . | . . Trap . | . . Miscellaneous . | . . Route ------- -11/Scrapyard -10/Materials (discovered 1 exit: [*Mat]) History --------- Turn | Location | Event 11 | -11/Scrapyard | Discovered new exit (range 15) 413 | -11/Scrapyard | Entered Materials 464 | -10/Materials | Build established: Mutant 956 | -10/Materials | Core integrity fell below 50% 979 | -10/Materials | Lost 8 parts (2p2n1u3w) 979 | -10/Materials | Core integrity fell below 20% 1129 | -10/Materials | Discovered new exit (range 12) 1448 | -10/Materials | Destroyed by S-10 Pest with Light Assault Rifle Last Messages --------------- Imp. Heat Sink Wheel Lgt. Nuclear Core 01287_ Acquired Lgt. Nuclear Core. 01319_ Acquired Lgt. Treads. 01333_ K-01 Serf collects debris. 01337_ Acquired Wheel. 01341_ K-01 Serf cleans the Neutrino Reactor. 01348_ Acquired Wheel. 01372_ Acquired 15 matter. 01391_ Acquired 8 matter. 01440_ O-16 Technician sends out distress signal. 01440_ O-16 Technician: "IFF HANDSHAKE FAILED. SECURING TERMINAL." 01443_ ALERT: Hostiles spotted, dispatching reinforcements to Terminal M006. 01448_ S-10 Pest suffers critical hit (Burn). 01448_ Flight Unit melted. 01448_ S-10 Pest destroyed. Map ----- +----------------------------------------------------+ | | | | | ?????????????????????????????????????????????????? | | ?????????????????????????????????????????????????? | | ?????????????????????????????????????????????????? | | ?????????????????????????????????????????????????? | | ?????????????????????????????????????????????????? | | ?????????????????????????????????????????????????? | | ?????????????????????????????????????????????????? | | ?????????????????????????????????????????????????? | | ???????????????????????? ?????????????????????? | | ????????????????????? ?? #????????????????????? | | ?????????????????? ?||[ #????????????????????? | | ???????????????? |[= ?????????????????????? | | ???????????????# |[= ?????????????????????? | | ???????????????# ?????????????????????? | | ???????????????# ?????????????????????? | | ???????????????# s ?????????????????????? | | ???????????????? #?????????????????????? | | ????????????????? =#?????????????????????? | | ?????????????????""" T*s#?????????????????????? | | ??????????? ? """ #?????????????????????? | | ??????????? """ #?????????????????????? | | ?????????? !] #?????????????????????? | | ?????????? [] +?????????????????????? | | ?????????? ] @ #?????????????????????? | | ?????????????????######### #?????????????????????? | | ?????????????????????????# #?????????????????????? | | ?????????????????????????# #?????????????????????? | | ?????????????????????????# #?????????????????????? | | ?????????????????????????# #?????????????????????? | | ?????????????# ######### ####??????????????????? | | ?????????????# #??????????????????? | | ?????????????# #??????????????????? | | ?????????????# +??????? ??????????? | | ?????????????# ########## #??????? #?????????? | | ????????????????????# # #??????# #?????????? | | ????????????????????# # #??????# #?????????? | | ????????????????????# """ # #??????# #?????????? | | ????????????????????# """ + #??????# #?????????? | | ????????????????????# """ # ######## ####??????? | | ????????????????????# # % #######+ | | ????????????????????# # % | | ????????????????????####### % | | ??????????????????????### # % """] """ =!! | | ??????????????????????# ###+## Y """ = ! | | ??????????????????????# % # """ ! | | ??????????????????????# |% # % % | | ??????????????????????# # | | ?????????????????????## == # | +----------------------------------------------------+ Best States ------------- Heat Dissipation 25 Energy Generation 14 Energy Capacity 160 Matter Stores 300 Matter Capacity 300 Sight Range 16 Terrain Scan Density 10 Evasion (%) 40 Recoil Reduction 2 Item Schematics ----------------- None Robot Schematics ------------------ None Fabricated ------------ Nothing Alien Tech Used ----------------- None Achievements -------------- None Challenges ------------ None Game ------ Seed LobotomyAerolevChronowheel Manual? 0 Play Time 00:17:02 Cumulative 4.8 hours Start 2024.05.02 @ 00:25:25 End 2024.05.02 @ 00:45:04 Sessions 1 Manual Loads 0 Difficulty Rogue Special Mode None Game No. 8 Rogue 8 Adventurer 0 Explorer 0 Win Type - Total 0 Types 0/0/0/0/0/0/0/0/0 Lore% 1 Gallery% 6 Achievement% 7 Wizard Run 0 Options --------- Layout 2 ASCII 1 Keyboard 1 Movement Arrows Keybinds 1 Fullscreen 2 Font 24/Smallcaps Map View 50x44 Zoom Use 0% Tactical HUD 1 Map Filters NONE Filters NONE Steam 1 RUN: 8bb2eb38-c324-4da7-be74-626bb3432814